bitfinex/quotes_SOLUSD_20240604
["timestamp","ask_amount","ask_price","bid_price","bid_amount"]
[1717480688222,2.2356,165.5,165.49,6.0843]
[1717480690424,13.4113,165.54,165.49,22.1062]
[1717480690721,2.2354,165.52,165.51,22.5728]
[1717480691022,20.1125,165.57,165.52,6.5509]
[1717480691023,2.2352,165.53,165.52,6.5509]
[1717480691523,9.2052,165.53,165.52,6.5509]
[1717480692026,2.2356,165.5,165.49,15.5964]
[1717480692602,4.4699,165.55,165.51,6.5965]
[1717480692808,2.2353,165.53,165.51,6.5965]
[1717480693012,2.2353,165.52,165.51,6.5965]
[1717480694214,2.2352,165.53,165.51,6.5965]
[1717480694412,2.2353,165.52,165.51,22.0819]
[1717480694627,2.2352,165.53,165.52,21.6863]
[1717480695628,2.2352,165.53,165.52,6.2009]
[1717480696346,2.2356,165.5,165.49,6.5832]
[1717480696519,6.97,165.5,165.46,16.6041]
[1717480696715,6.97,165.5,165.47,6.1116]
[1717480696904,6.97,165.49,165.47,6.1116]
[1717480697228,2.2362,165.46,165.43,22.3368]
[1717480697426,2.2362,165.46,165.44,6.4706]
[1717480697730,6.97,165.47,165.44,6.4706]
[1717480697935,2.2361,165.46,165.44,6.4706]
[1717480698820,2.2361,165.47,165.44,6.4706]
[1717480699227,2.2362,165.46,165.44,6.4706]
[1717480700330,2.2363,165.45,165.41,21.3579]
[1717480700536,2.2363,165.45,165.42,6.4223]
[1717480701108,2.2365,165.44,165.42,6.4223]
[1717480701434,2.2365,165.44,165.41,15.2756]
[1717480701435,2.2366,165.43,165.41,0.17]
[1717480701609,2.2366,165.43,165.39,15.3157]
[1717480701812,2.2366,165.43,165.4,6.3948]
[1717480702741,2.2365,165.44,165.4,6.3948]
[1717480703038,2.2365,165.44,165.41,6.0095]
[1717480703332,2.2363,165.45,165.41,6.0095]
[1717480704221,2.2365,165.44,165.41,6.0095]
[1717480705912,2.2363,165.45,165.41,6.0095]
[1717480706424,4.4716,165.49,165.43,6.6663]
[1717480706611,2.2361,165.47,165.44,6.6663]
[1717480706811,4.4716,165.49,165.41,2.2368]
[1717480707315,4.4716,165.49,165.42,0.34]
[1717480707516,2.2364,165.45,165.42,0.17]
[1717480707948,2.2364,165.45,165.41,6.7233]
[1717480708236,4.4716,165.49,165.42,6.0966]
[1717480708543,2.2362,165.46,165.42,6.0966]
[1717480708716,2.2362,165.46,165.43,0.17]
[1717480708923,2.2362,165.46,165.43,0.34]
[1717480709235,4.4716,165.49,165.42,6.0966]
[1717480709439,23.13048901,165.5,165.34,156.21]
[1717480709611,4.4726,165.45,165.36,2.2375]
[1717480709805,4.4729,165.44,165.35,2.2376]
[1717480710110,2.2369,165.41,165.36,6.2037]
[1717480710311,2.2369,165.41,165.36,8.4412]
[1717480710518,2.2369,165.41,165.36,6.2037]
[1717480710718,2.237,165.4,165.36,6.2037]
[1717480711115,2.2371,165.39,165.34,8.556]
[1717480711813,2.2371,165.39,165.35,2.2376]
[1717480712250,2.2371,165.39,165.35,8.2504]
[1717480712420,6.54368901,165.43,165.35,8.2504]
[1717480712742,6.54368901,165.43,165.36,0.17]
[1717480713423,2.2371,165.39,165.34,2.2377]
[1717480713728,2.2371,165.39,165.34,8.6043]
[1717480714126,2.237,165.4,165.35,2.2376]
[1717480714320,6.54368901,165.43,165.35,2.2376]
[1717480714532,2.237,165.4,165.35,122.2376]
[1717480714741,2.237,165.4,165.36,0.17]
[1717480714928,2.2371,165.39,165.36,0.17]
[1717480716422,6.54368901,165.43,165.36,0.17]
[1717480716423,2.237,165.4,165.36,0.17]
[1717480716738,2.237,165.4,165.36,0.34]
[1717480716952,2.237,165.4,165.36,2.5775]
[1717480718341,2.07048901,165.46,165.38,120.0]
[1717480718342,2.2367,165.42,165.38,120.0]
[1717480718543,2.2367,165.42,165.39,0.17]
[1717480719415,13.44980859,165.45,165.38,0.34]
[1717480719416,2.2369,165.41,165.38,0.34]
[1717480719614,2.2369,165.41,165.37,2.4073]
[1717480719833,7.02,165.44,165.38,129.4272]
[1717480720015,7.02,165.44,165.39,0.17]
[1717480720216,8.97710859,165.46,165.39,0.17]
[1717480720444,2.2365,165.44,165.39,2.407]
[1717480720624,2.2365,165.44,165.39,9.427]
[1717480721024,2.2366,165.43,165.39,9.427]
[1717480721624,2.2366,165.43,165.39,7.19]
[1717480722644,2.2366,165.43,165.39,0.17]
[1717480723056,2.2367,165.42,165.39,0.17]
[1717480724844,2.2367,165.42,165.38,0.34]
[1717480725030,2.2367,165.42,165.38,7.36]
[1717480725952,2.2368,165.41,165.38,7.36]
[1717480726254,2.237,165.4,165.38,0.34]
[1717480726449,2.237,165.4,165.37,0.34]
[1717480726625,2.237,165.4,165.35,3.28482803]
[1717480726828,2.2371,165.39,165.35,3.28482803]
[1717480728033,2.2371,165.39,165.36,0.34]
[1717480728929,2.2371,165.39,165.36,0.17]
[1717480729440,9.257,165.4,165.36,0.17]
[1717480730353,2.2372,165.38,165.35,1.04722803]
[1717480730535,7.02,165.38,165.32,2.238]
[1717480730740,2.2375,165.36,165.32,127.02]
[1717480731143,2.2374,165.37,165.32,8.6804]
[1717480731343,2.2374,165.37,165.32,9.258]
[1717480732262,2.2374,165.37,165.33,7.02]
[1717480732444,2.2372,165.38,165.33,9.2579]
[1717480732642,8.97288316,165.41,165.34,129.5978]
[1717480732851,2.2372,165.39,165.34,129.5978]
[1717480733245,6.2266,165.39,165.31,10.37510687]
[1717480733444,33.7576,165.48,165.31,16.50900687]
[1717480733445,2.2378,165.34,165.31,16.50900687]
[1717480733643,2.238,165.32,165.31,10.37510687]
[1717480738653,9.258,165.32,165.31,10.37510687]
[1717480740270,2.238,165.32,165.31,10.37510687]
[1717480740971,9.258,165.32,165.31,10.37510687]
[1717480741158,13.7341,165.32,165.31,10.37510687]
[1717480741551,2.238,165.32,165.31,10.37510687]
[1717480742455,8.96700085,165.37,165.32,120.0]
[1717480742671,20.46170085,165.38,165.33,0.34]
[1717480742962,2.2377,165.35,165.33,0.34]
[1717480743368,7.02,165.38,165.33,0.34]
[1717480743580,2.2377,165.35,165.33,0.34]
[1717480744154,2.2375,165.36,165.33,0.34]
[1717480745066,2.2375,165.36,165.33,6.9221]
[1717480745270,8.96753677,165.4,165.34,126.4806]
[1717480745450,20.46173677,165.4,165.33,0.34]
[1717480745648,2.2373,165.38,165.33,9.5979]
[1717480745880,2.2374,165.37,165.33,7.36]
[1717480746045,2.2374,165.37,165.33,13.5854]
[1717480746249,2.2373,165.38,165.34,127.02]
[1717480746477,2.2373,165.38,165.35,0.17]
[1717480746902,2.2374,165.37,165.35,0.17]
[1717480747215,2.2373,165.38,165.35,0.17]
[1717480747344,2.2373,165.38,165.35,0.34]
[1717480749556,2.2371,165.39,165.35,7.36]
[1717480750171,2.237,165.4,165.36,120.0]
[1717480750369,11.20443677,165.41,165.37,0.34]
[1717480750757,2.237,165.4,165.37,0.34]
[1717480752300,8.96753677,165.41,165.38,120.0]
[1717480752463,2.2367,165.42,165.39,0.17]
[1717480754594,8.96753677,165.43,165.41,2.2368]
[1717480754804,8.96753677,165.43,165.42,0.34]
[1717480754980,8.96753677,165.45,165.42,0.34]
[1717480755173,8.96753677,165.45,165.42,7.36]
[1717480755377,2.2362,165.46,165.42,7.19]
[1717480755594,18.22353677,165.47,165.42,7.19]
[1717480756099,2.2362,165.46,165.42,7.19]
[1717480759372,2.2362,165.46,165.42,0.17]
[1717480760303,2.2362,165.46,165.42,7.19]
[1717480760480,2.2362,165.46,165.43,0.17]
[1717480760885,2.2361,165.47,165.43,7.19]
[1717480761496,8.96753677,165.48,165.43,0.17]
[1717480761497,2.2361,165.46,165.43,0.17]
[1717480761673,2.236,165.47,165.43,0.17]
[1717480762116,2.2369,165.41,165.35,122.2376]
[1717480762281,7.02,165.4,165.35,122.2376]
[1717480762617,9.257,165.4,165.35,122.2376]
[1717480762791,9.257,165.4,165.35,120.0]
[1717480762994,7.02,165.39,165.35,120.0]
[1717480763503,8.96753677,165.42,165.35,120.0]
[1717480763675,2.2368,165.41,165.36,2.2374]
[1717480764028,11.20423677,165.42,165.36,2.2374]
[1717480764685,2.2368,165.41,165.36,2.2374]
[1717480765396,8.96753677,165.43,165.37,122.2373]
[1717480765606,11.20413677,165.43,165.38,0.34]
[1717480765801,8.96753677,165.42,165.38,0.34]
[1717480766102,7.02,165.41,165.35,127.02]
[1717480766307,9.257,165.4,165.36,0.34]
[1717480766519,2.237,165.4,165.36,0.34]
[1717480766713,9.257,165.4,165.36,0.34]
[1717480767183,9.257,165.4,165.35,122.2376]
[1717480767383,7.02,165.39,165.35,120.0]
[1717480767583,9.2571,165.39,165.35,120.0]
[1717480768287,7.02,165.39,165.35,120.0]
[1717480768482,7.02,165.39,165.35,2.2375]
[1717480768879,7.02,165.39,165.36,2.2375]
[1717480769199,7.02,165.4,165.36,2.2375]
[1717480769381,2.2369,165.41,165.36,2.2375]
[1717480769583,7.02,165.4,165.36,2.2375]
[1717480770424,7.02,165.4,165.35,120.0]
[1717480770425,7.02,165.4,165.37,2.2373]
[1717480771124,11.20670683,165.42,165.37,2.2373]
[1717480771125,7.02,165.41,165.37,2.2373]
[1717480771505,9.2567,165.42,165.37,2.2373]
[1717480772017,8.97019512,165.43,165.37,120.0]
[1717480772320,15.99019512,165.43,165.39,2.2371]
[1717480772610,2.2365,165.44,165.39,2.2371]
[1717480772611,9.2565,165.44,165.39,2.2371]
[1717480772991,9.2565,165.44,165.39,122.2371]
[1717480774114,2.2366,165.43,165.39,122.2371]
[1717480774302,2.2366,165.43,165.38,9.5972]
[1717480774540,9.2566,165.43,165.38,2.5772]
[1717480774688,7.02,165.42,165.38,2.5772]
[1717480774892,7.02,165.42,165.38,0.34]
[1717480775086,7.02,165.4,165.37,0.34]
[1717480775296,9.257,165.4,165.37,0.17]
[1717480775501,9.257,165.4,165.36,2.2374]
[1717480775691,7.02,165.4,165.36,2.2374]
[1717480775892,2.2369,165.41,165.36,2.2374]
[1717480776114,2.2367,165.42,165.37,2.2373]
[1717480776310,7.02,165.41,165.37,2.2373]
[1717480777412,9.2567,165.42,165.37,2.2373]
[1717480778712,9.2567,165.42,165.38,2.5772]
[1717480778713,2.2367,165.42,165.38,2.5772]
[1717480779223,2.2367,165.42,165.38,0.34]
[1717480779431,9.2567,165.42,165.38,0.34]
[1717480780093,9.2566,165.43,165.39,2.2371]
[1717480780724,9.2566,165.43,165.38,2.5772]
[1717480781040,9.2566,165.43,165.38,0.34]
[1717480781223,9.2566,165.43,165.38,2.5772]
[1717480781394,18.2254686,165.43,165.38,2.5772]
[1717480781714,2.2367,165.42,165.38,2.5772]
[1717480783020,8.9688686,165.43,165.4,120.0]
[1717480783190,8.9688686,165.43,165.41,0.17]
[1717480783391,11.2054686,165.43,165.41,0.17]
[1717480783895,11.2054686,165.43,165.4,0.34]
[1717480784610,11.2054686,165.43,165.4,120.34]
[1717480784830,8.9688686,165.43,165.4,122.5769]
[1717480785023,8.9688686,165.43,165.4,120.34]
[1717480786125,8.9688686,165.43,165.4,129.5969]
[1717480786431,8.9688686,165.43,165.4,127.36]
[1717480788327,11.2052686,165.44,165.4,7.36]
[1717480788630,11.2052686,165.44,165.4,120.34]
[1717480788923,2.2364,165.44,165.4,120.34]
[1717480790226,2.2364,165.44,165.4,122.5769]
[1717480791531,2.2363,165.45,165.4,122.5769]
[1717480792525,2.2364,165.44,165.4,122.5769]
[1717480794717,2.2363,165.45,165.4,122.5769]
[1717480795820,2.2364,165.44,165.4,122.5769]
[1717480796212,2.2364,165.44,165.4,127.36]
[1717480797735,2.2364,165.44,165.4,129.5969]
[1717480801013,2.2364,165.44,165.4,127.36]
[1717480801337,2.2366,165.43,165.4,0.17]
[1717480801548,2.2368,165.42,165.37,165.4673]
[1717480802343,2.2368,165.41,165.37,2.2373]
[1717480802633,7.02,165.42,165.36,7.02]
[1717480802839,4.4732,165.43,165.35,122.2376]
[1717480802840,7.02,165.4,165.35,122.2376]
[1717480803163,9.257,165.4,165.35,122.2376]
[1717480803434,9.2571,165.4,165.35,122.2376]
[1717480803618,8.9471,165.42,165.33,120.0]
[1717480803812,2.2374,165.37,165.33,2.2378]
[1717480804018,2.2374,165.37,165.32,3.285115]
[1717480804541,9.2574,165.37,165.32,3.285115]
[1717480804961,7.02,165.37,165.33,2.2379]
[1717480805124,2.2374,165.37,165.32,10.305115]
[1717480805321,9.2574,165.37,165.32,2.238]
[1717480806629,7.02,165.37,165.33,2.2379]
[1717480807069,9.2574,165.37,165.32,2.238]
[1717480807350,2.07048901,165.39,165.37,2.2374]
[1717480807555,7.02,165.39,165.33,7.02]
[1717480807718,2.237,165.4,165.35,2.2375]
[1717480807922,2.2371,165.39,165.34,2.2377]
[1717480808224,2.2374,165.37,165.33,7.02]
[1717480808536,2.2374,165.37,165.34,0.17]
[1717480808939,2.2374,165.37,165.33,2.5779]
[1717480809131,9.2574,165.37,165.33,2.4079]
[1717480810235,9.2574,165.37,165.33,2.2379]
[1717480810544,9.2576,165.36,165.31,12.61320687]
[1717480811077,9.2576,165.36,165.32,2.238]
[1717480811223,9.2576,165.36,165.31,12.61320687]
[1717480811549,9.2577,165.35,165.31,10.37510687]
[1717480811714,2.2379,165.33,165.31,10.37510687]
[1717480811921,7.02,165.33,165.31,10.37510687]
[1717480812148,9.2579,165.33,165.31,10.37510687]
[1717480812356,2.238,165.32,165.31,10.37510687]
[1717480812561,15.6963,165.32,165.31,10.37510687]
[1717480813919,17.76678901,165.32,165.31,10.37510687]
[1717480814541,35.8315,165.32,165.31,10.37510687]
[1717480815457,35.8315,165.32,165.25,0.8139365]
[1717480815458,2.2388,165.26,165.25,0.8139365]
[1717480815665,9.2588,165.26,165.25,0.8139365]
[1717480815963,2.2388,165.26,165.25,0.8139365]
[1717480816767,9.2588,165.26,165.25,0.8139365]
[1717480817560,2.2388,165.26,165.25,0.8139365]
[1717480817852,2.2387,165.28,165.25,0.8139365]
[1717480818238,9.2587,165.28,165.25,0.8139365]
[1717480818475,2.2387,165.28,165.25,0.8139365]
[1717480819367,9.2587,165.28,165.25,0.8139365]
[1717480819862,2.2388,165.26,165.25,0.8139365]
[1717480820542,2.2388,165.27,165.25,0.8139365]
[1717480821546,9.2586,165.28,165.25,0.8139365]
[1717480822362,2.2386,165.28,165.25,0.8139365]
[1717480822969,2.2382,165.31,165.26,2.5788]
[1717480823295,2.2382,165.31,165.27,120.0]
[1717480823580,2.2381,165.32,165.28,0.17]
[1717480823743,9.258,165.33,165.28,2.5785]
[1717480824045,2.2381,165.32,165.28,2.5785]
[1717480824243,2.2381,165.32,165.28,0.34]
[1717480824471,2.2379,165.33,165.28,9.5985]
[1717480825076,2.2379,165.33,165.29,120.0]
[1717480825379,2.2378,165.34,165.3,0.34]
[1717480825677,2.2376,165.35,165.31,120.0]
[1717480825884,9.2575,165.36,165.32,0.17]
[1717480826184,9.2575,165.36,165.3,0.34]
[1717480826185,7.02,165.34,165.3,0.17]
[1717480826390,2.238,165.33,165.3,0.34]
[1717480826678,9.258,165.33,165.3,0.34]
[1717480826880,2.2381,165.32,165.3,0.17]
[1717480827083,9.2581,165.32,165.29,0.34]
[1717480827253,2.2382,165.31,165.28,0.34]
[1717480827454,2.2384,165.3,165.25,0.8139365]
[1717480827772,7.02,165.29,165.25,23.0528365]
[1717480828350,7.02,165.29,165.26,2.2388]
[1717480829752,7.02,165.29,165.27,2.2387]
[1717480829969,2.2381,165.32,165.27,2.2387]
[1717480830275,2.2382,165.31,165.26,2.2388]
[1717480830694,2.2382,165.31,165.27,2.2387]
[1717480830893,2.2381,165.32,165.28,2.2386]
[1717480831408,2.2379,165.33,165.26,120.0]
[1717480831690,8.9492,165.38,165.3,2.2383]
[1717480831691,30.0492,165.38,165.3,2.2383]
[1717480831991,4.4745,165.38,165.3,2.2383]
[1717480832194,2.2378,165.34,165.3,2.2383]
[1717480832697,2.2377,165.35,165.31,2.4081]
[1717480832922,2.2374,165.37,165.32,2.238]
[1717480833195,2.2374,165.37,165.31,0.34]
[1717480833900,6.3265,165.4,165.34,2.2377]
[1717480834095,2.2371,165.39,165.34,2.2377]
[1717480835275,4.4737,165.41,165.33,2.5779]
[1717480835491,2.2374,165.37,165.33,0.34]
[1717480836390,2.07048901,165.41,165.33,0.17]
[1717480836577,2.2375,165.36,165.31,2.2381]
[1717480836776,2.2378,165.34,165.3,2.2383]
[1717480837897,2.2376,165.35,165.3,2.2383]
[1717480838404,4.4749,165.37,165.29,0.34]
[1717480838566,2.238,165.33,165.29,0.17]
[1717480838766,10.7768,165.36,165.29,0.17]
[1717480839068,6.3016,165.36,165.27,2.2387]
[1717480839272,2.2382,165.31,165.27,2.2387]
[1717480839471,2.2381,165.32,165.27,2.2387]
[1717480839684,2.2382,165.31,165.27,2.2387]
[1717480839886,8.3188,165.31,165.27,2.2387]
[1717480840200,8.3188,165.31,165.26,122.2388]
[1717480840783,8.3188,165.31,165.27,2.2387]
[1717480841077,8.3188,165.31,165.25,0.8139365]
[1717480841078,6.0806,165.31,165.25,0.8139365]
[1717480841475,2.2386,165.28,165.25,0.8139365]
[1717480841901,2.2385,165.29,165.25,0.8139365]
[1717480843905,2.2385,165.29,165.25,3.0529365]
[1717480844075,2.2384,165.3,165.25,3.0529365]
[1717480844276,2.2385,165.29,165.25,3.0529365]
[1717480845306,2.2383,165.3,165.26,122.5788]
[1717480845487,2.2382,165.32,165.27,2.2387]
[1717480845880,2.2382,165.31,165.27,2.2387]
[1717480846075,2.2387,165.28,165.25,0.8139365]
[1717480846378,2.2388,165.26,165.25,0.8139365]
[1717480847275,2.2388,165.27,165.25,0.8139365]
[1717480849607,2.2386,165.28,165.25,0.8139365]
[1717480849809,4.4762,165.32,165.25,0.8139365]
[1717480850098,2.2383,165.31,165.26,2.5788]
[1717480850285,2.2383,165.3,165.26,2.5788]
[1717480850479,2.2383,165.3,165.26,2.2388]
[1717480851297,2.2382,165.31,165.26,2.2388]
[1717480851603,2.2383,165.3,165.26,2.2388]
[1717480852679,2.2383,165.3,165.25,3.0528365]
[1717480853889,2.2383,165.3,165.26,2.2388]
[1717480854393,2.2383,165.3,165.25,0.8139365]
[1717480854394,2.2383,165.3,165.25,3.0528365]
[1717480855206,2.2382,165.31,165.27,2.2387]
[1717480856708,2.2382,165.31,165.26,2.2388]
[1717480856878,2.2383,165.3,165.25,3.0528365]
[1717480857078,2.2384,165.29,165.25,3.0528365]
[1717480857999,2.2384,165.3,165.25,3.0528365]
[1717480858202,2.2384,165.3,165.26,2.2388]
[1717480858789,2.2382,165.31,165.26,2.2388]
[1717480859806,2.2383,165.3,165.26,2.2388]
[1717480860028,2.2383,165.3,165.25,3.0528365]
[1717480860327,6.54678901,165.32,165.25,0.8139365]
[1717480860528,2.2386,165.29,165.25,0.8139365]
[1717480863022,6.54678901,165.32,165.25,0.8139365]
[1717480863023,4.4767,165.3,165.25,0.8139365]
[1717480863209,2.2388,165.27,165.25,0.8139365]
[1717480864028,2.2386,165.28,165.25,0.8139365]
[1717480864225,10.7181,165.32,165.25,3.0528365]
[1717480864451,2.2385,165.29,165.25,0.8139365]
[1717480864937,2.2386,165.28,165.25,0.8139365]
[1717480865808,22.3886,165.26,165.25,0.8139365]
[1717480866163,22.3886,165.26,165.13,120.0]
[1717480866164,2.2397,165.2,165.13,120.0]
[1717480866430,39.22558901,165.26,165.15,2.2402]
[1717480866431,2.07048901,165.24,165.15,2.2402]
[1717480866617,2.2397,165.21,165.13,122.2405]
[1717480866802,20.0,165.25,165.13,122.2405]
[1717480867002,24.4782,165.25,165.13,120.0]
[1717480867313,2.2397,165.2,165.13,120.0]
[1717480867718,2.2397,165.2,165.13,122.2406]
[1717480867927,2.2398,165.19,165.13,120.0]
[1717480868325,31.1954,165.25,165.13,120.0]
[1717480868516,2.2398,165.19,165.13,120.0]
[1717480868719,2.2398,165.19,165.13,120.34]
[1717480869731,2.2397,165.2,165.13,120.34]
[1717480869931,2.2396,165.21,165.13,122.5806]
[1717480870115,2.2397,165.2,165.15,0.34]
[1717480871172,2.2398,165.19,165.15,0.34]
[1717480871314,2.2398,165.19,165.13,120.0]
[1717480871513,2.2398,165.19,165.15,0.17]
[1717480872721,2.2393,165.23,165.17,120.0]
[1717480872929,2.2393,165.23,165.18,0.17]
[1717480873324,2.2391,165.24,165.18,0.17]
[1717480873528,2.2391,165.24,165.18,0.34]
[1717480873717,2.2393,165.23,165.18,0.34]
[1717480874427,2.2391,165.25,165.19,120.0]
[1717480874626,4.4765,165.31,165.21,120.0]
[1717480874949,21.9669,165.34,165.23,122.2392]
[1717480874950,2.2384,165.3,165.23,122.2392]
[1717480875144,2.2381,165.32,165.25,120.0]
[1717480875321,6.5093,165.34,165.27,120.0]
[1717480875322,2.2379,165.34,165.27,120.0]
[1717480875526,2.2379,165.34,165.28,0.34]
[1717480875920,2.2379,165.34,165.28,2.5786]
[1717480876157,2.2376,165.36,165.29,122.2384]
[1717480876350,6.0566,165.38,165.29,122.2384]
[1717480876351,2.2377,165.35,165.3,0.34]
[1717480877355,2.2375,165.37,165.31,6.2173]
[1717480877849,2.2375,165.36,165.31,6.2173]
[1717480878027,2.2373,165.38,165.31,128.4554]
[1717480878225,2.2373,165.38,165.32,0.34]
[1717480878453,26.1836,165.43,165.32,2.578]
[1717480878745,2.2372,165.39,165.32,2.578]
[1717480878950,2.2372,165.38,165.32,2.578]
[1717480880136,2.2371,165.39,165.33,122.2379]
[1717480880435,2.2371,165.39,165.34,0.34]
[1717480881152,2.237,165.4,165.34,2.5777]
[1717480882326,2.2367,165.42,165.36,2.2375]
[1717480882635,2.2368,165.41,165.35,122.2376]
[1717480882833,2.2368,165.41,165.36,6.4016]
[1717480883049,2.2369,165.41,165.36,6.4016]
[1717480885534,8.20087463,165.46,165.37,126.4872]
[1717480885733,2.2366,165.43,165.38,0.17]
[1717480886029,2.2365,165.44,165.39,6.4872]
[1717480886744,4.472,165.48,165.39,126.4872]
[1717480886944,2.2363,165.45,165.39,128.7242]
[1717480887655,2.2361,165.47,165.4,2.4069]
[1717480887861,2.2362,165.46,165.4,2.4069]
[1717480889339,2.2362,165.46,165.39,126.4872]
[1717480890446,2.236,165.47,165.41,2.2368]
[1717480890835,2.2359,165.48,165.42,2.2367]
[1717480891454,2.236,165.47,165.41,128.7047]
[1717480891644,2.236,165.47,165.42,2.2367]
[1717480891857,2.2359,165.48,165.44,6.4679]
[1717480892877,4.4713,165.5,165.4,6.3484]
[1717480893047,2.2364,165.45,165.4,6.0084]
[1717480893244,2.2367,165.43,165.37,2.2374]
[1717480893552,2.2365,165.44,165.39,6.5177]
[1717480893760,2.2366,165.43,165.39,6.5177]
[1717480893952,4.4726,165.46,165.35,120.0]
[1717480894150,2.2369,165.41,165.35,2.2376]
[1717480894465,2.237,165.4,165.35,2.2376]
[1717480894670,2.2368,165.41,165.35,2.2376]
[1717480895272,2.2368,165.41,165.35,22.2376]
[1717480895768,2.2367,165.42,165.36,2.2374]
[1717480895944,2.2366,165.43,165.35,140.0]
[1717480896136,2.2366,165.43,165.37,2.2373]
[1717480896750,2.2366,165.43,165.38,2.2372]
[1717480896951,2.2364,165.44,165.38,2.2372]
[1717480897977,2.2363,165.45,165.39,2.237]
[1717480898545,2.2363,165.45,165.4,2.2369]
[1717480899365,6.1722,165.51,165.39,120.17]
[1717480899556,2.2359,165.48,165.43,2.2365]
[1717480899755,2.2358,165.49,165.43,2.2365]
[1717480899951,13.4126,165.52,165.43,2.2365]
[1717480900142,2.2358,165.49,165.43,2.2365]
[1717480900341,2.2359,165.48,165.44,6.5925]
[1717480903071,2.2359,165.48,165.43,2.2365]
[1717480903245,6.7069,165.5,165.41,2.2368]
[1717480903447,2.2362,165.46,165.4,8.7714]
[1717480903871,2.2362,165.46,165.41,2.2368]
[1717480904068,2.236,165.47,165.41,2.2368]
[1717480904251,2.2361,165.46,165.41,2.2368]
[1717480904450,2.2363,165.45,165.4,2.2369]
[1717480905475,2.2361,165.47,165.39,135.8683]
[1717480905775,2.2361,165.47,165.4,0.34]
[1717480906255,2.2361,165.47,165.42,2.2366]
[1717480906457,2.2361,165.47,165.41,2.2368]
[1717480906659,2.2362,165.46,165.41,2.2368]
[1717480907247,2.236,165.47,165.42,2.2367]
[1717480907475,4.4711,165.51,165.41,120.0]
[1717480908071,2.2359,165.48,165.42,2.2367]
[1717480908375,2.2361,165.47,165.42,2.2367]
[1717480909449,2.2361,165.47,165.41,2.2368]
[1717480910676,2.2361,165.47,165.4,20.0]
[1717480910677,2.2361,165.47,165.42,2.2367]
[1717480911084,2.2362,165.46,165.39,135.8683]
[1717480911380,2.2362,165.46,165.41,2.2368]
[1717480912557,11.1785,165.5,165.39,15.8683]
[1717480912558,2.236,165.47,165.42,2.2367]
[1717480913465,2.2361,165.46,165.41,2.2368]
[1717480913788,2.2361,165.47,165.42,2.2367]
[1717480915287,2.2362,165.46,165.41,2.2368]
[1717480916552,2.2363,165.45,165.4,2.2369]
[1717480916761,6.7086,165.46,165.35,120.0]
[1717480917057,2.2367,165.42,165.37,2.2373]
[1717480918167,2.2366,165.43,165.38,2.2372]
[1717480918368,2.2367,165.42,165.38,2.2372]
[1717480918666,2.2367,165.42,165.37,2.2373]
[1717480919388,2.2367,165.42,165.38,2.2372]
[1717480919681,2.2367,165.42,165.37,2.2373]
[1717480920066,2.2366,165.43,165.38,2.2372]
[1717480921887,2.2367,165.42,165.37,2.2373]
[1717480922791,2.2368,165.41,165.36,2.2374]
[1717480923368,2.2368,165.41,165.35,2.2376]
[1717480923569,2.2368,165.41,165.36,2.2375]
[1717480924696,2.2368,165.41,165.35,2.2376]